bitfinex-derivatives/quotes_BTCF0:USTF0_20260207
["timestamp","ask_amount","ask_price","bid_price","bid_amount"]
[1770458671780,0.014646,68323.0,68301.0,0.014651]
[1770458672074,0.073205,68348.0,68300.0,0.1500509]
[1770458672075,0.014645,68329.0,68311.0,0.55553649]
[1770458672283,0.57970143,68324.0,68293.0,0.55553649]
[1770458672587,0.014648,68315.0,68295.0,0.55553649]
[1770458673081,0.014648,68315.0,68291.0,0.014653]
[1770458673689,0.014649,68309.0,68286.0,0.55567717]
[1770458673875,0.014649,68309.0,68287.0,0.014653]
[1770458674278,0.014648,68312.0,68287.0,0.014653]
[1770458674880,0.014648,68312.0,68287.0,0.57018949]
[1770458675080,0.014648,68312.0,68288.0,0.33608295]
[1770458675277,0.014648,68312.0,68290.0,0.55553649]
[1770458676294,0.014649,68310.0,68290.0,0.55553649]
[1770458677184,0.01465,68302.0,68286.0,0.00014068]
[1770458678594,0.01465,68305.0,68286.0,0.52669917]
[1770458678790,0.014649,68309.0,68286.0,0.52669917]
[1770458678989,0.57990143,68314.0,68286.0,0.52669917]
[1770458678990,0.0002,68314.0,68286.0,0.52669917]
[1770458679489,0.014659,68310.0,68286.0,0.52669917]
[1770458679793,0.029308,68310.0,68288.0,0.52655849]
[1770458679996,0.014649,68307.0,68288.0,0.52655849]
[1770458680194,0.01465,68305.0,68288.0,0.52655849]
[1770458680395,0.01465,68303.0,68288.0,0.52655849]
[1770458680997,0.56451763,68312.0,68288.0,0.52655849]
[1770458681298,0.014646,68321.0,68269.0,0.52655849]
[1770458681299,0.014654,68284.0,68269.0,0.52655849]
[1770458681487,0.56451763,68299.0,68269.0,0.52655849]
[1770458681688,0.014652,68296.0,68269.0,0.52655849]
[1770458681995,0.014655,68283.0,68269.0,0.52655849]
[1770458682190,0.00014168,68282.0,68269.0,0.52655849]
[1770458683191,0.014656,68277.0,68269.0,0.52655849]
[1770458683691,0.014656,68278.0,68269.0,0.52655849]
[1770458684003,0.014656,68278.0,68261.0,0.52655849]
[1770458684198,0.014656,68276.0,68261.0,0.52655849]
[1770458684592,0.56465931,68282.0,68252.0,0.52655849]
[1770458684792,0.014659,68264.0,68252.0,0.52655849]
[1770458685096,0.073263,68294.0,68241.0,0.00017249]
[1770458685097,0.014661,68254.0,68241.0,0.52673098]
[1770458685393,0.014661,68252.0,68241.0,0.52673098]
[1770458685597,0.014663,68244.0,68232.0,0.52655849]
[1770458685794,0.56451763,68262.0,68232.0,0.52615849]
[1770458685994,0.01466,68257.0,68232.0,0.52615849]
[1770458686295,0.56451763,68275.0,68241.0,0.52655849]
[1770458686500,0.014659,68260.0,68241.0,0.52655849]
[1770458686699,0.00013791,68259.0,68241.0,0.52655849]
[1770458687204,0.014661,68255.0,68241.0,0.52655849]
[1770458687393,0.014661,68255.0,68227.0,0.52655849]
[1770458687595,0.014661,68253.0,68228.0,0.014666]
[1770458687794,0.014661,68253.0,68229.0,0.52655849]
[1770458688195,0.014661,68253.0,68228.0,0.014666]
[1770458688196,0.00013791,68259.0,68233.0,0.52655849]
[1770458688502,0.01479791,68259.0,68233.0,0.52655849]
[1770458689297,0.01466,68256.0,68233.0,0.52655849]
[1770458689500,0.00013791,68259.0,68233.0,0.52655849]
[1770458689699,0.01466,68258.0,68233.0,0.52655849]
[1770458691004,0.014661,68254.0,68233.0,0.52655849]
[1770458691203,0.01466,68258.0,68233.0,0.52655849]
[1770458691404,0.00013791,68259.0,68239.0,0.52655849]
[1770458691704,0.00013791,68259.0,68241.0,0.52655849]
[1770458692201,0.00013791,68259.0,68224.0,0.52655849]
[1770458692202,0.56465554,68259.0,68224.0,0.52655849]
[1770458692400,0.56465554,68259.0,68224.0,0.54122549]
[1770458692799,0.014662,68250.0,68224.0,0.54122549]
[1770458693207,0.56451763,68251.0,68224.0,0.52655849]
[1770458693402,0.014665,68236.0,68224.0,0.001]
[1770458693602,0.00011353,68235.0,68224.0,0.001]
[1770458694110,0.014665,68234.0,68224.0,0.001]
[1770458694513,0.00011353,68235.0,68224.0,0.001]
[1770458694706,0.00011353,68235.0,68215.0,0.52655849]
[1770458695009,0.01477253,68235.0,68215.0,0.52655849]
[1770458695311,0.014667,68227.0,68205.0,0.52655849]
[1770458695498,0.014667,68224.0,68205.0,0.52655849]
[1770458695704,0.00017964,68223.0,68205.0,0.52655849]
[1770458696308,0.014667,68222.0,68205.0,0.52655849]
[1770458696510,0.014668,68220.0,68205.0,0.52655849]
[1770458697203,0.014669,68218.0,68205.0,0.52655849]
[1770458697607,0.01467,68212.0,68196.0,0.52655849]
[1770458698111,0.014669,68215.0,68196.0,0.52655849]
[1770458698313,0.00014413,68214.0,68196.0,0.52655849]
[1770458698609,0.01467,68210.0,68196.0,0.52655849]
[1770458698808,0.014672,68203.0,68187.0,0.52655849]
[1770458699016,0.00011676,68202.0,68187.0,0.52655849]
[1770458700409,0.56451763,68233.0,68195.0,0.52655849]
[1770458700602,0.56451763,68233.0,68199.0,0.52655849]
[1770458701204,0.56451763,68233.0,68201.0,0.52655849]
[1770458701410,0.014666,68231.0,68205.0,0.52655849]
[1770458701704,0.014666,68231.0,68208.0,0.52655849]
[1770458702802,0.014666,68231.0,68186.0,0.17436262]
[1770458702803,0.56451763,68225.0,68186.0,0.17436262]
[1770458703008,0.56451763,68225.0,68175.0,0.29060216]
[1770458703009,0.014674,68192.0,68176.0,0.52655849]
[1770458703314,0.01485486,68191.0,68176.0,0.52655849]
[1770458703506,0.014675,68188.0,68176.0,0.52655849]
[1770458703705,0.00018086,68191.0,68176.0,0.52655849]
[1770458703901,0.01485486,68191.0,68176.0,0.52655849]
[1770458704108,0.014673,68198.0,68176.0,0.52655849]
[1770458704508,0.56451763,68221.0,68180.0,0.52655849]
[1770458704706,0.56451763,68221.0,68184.0,0.52655849]
[1770458704908,0.014668,68219.0,68194.0,0.52655849]
[1770458705112,0.014669,68216.0,68194.0,0.52655849]
[1770458705410,0.56451763,68217.0,68184.0,0.52655849]
[1770458705602,0.56451763,68212.0,68184.0,0.52655849]
[1770458705807,0.56465667,68211.0,68184.0,0.52655849]
[1770458706212,0.56465667,68211.0,68159.0,0.17436262]
[1770458706410,0.0002,68256.0,68150.0,0.57034666]
[1770458706411,0.56771092,68182.0,68150.0,0.57034666]
[1770458706615,0.014678,68173.0,68150.0,0.57034666]
[1770458706815,0.56771092,68182.0,68150.0,0.57034666]
[1770458707017,0.014677,68178.0,68150.0,0.57034666]
[1770458707315,0.014681,68161.0,68139.0,0.53847064]
[1770458707514,0.01468,68165.0,68139.0,0.53847064]
[1770458707711,0.00018361,68160.0,68139.0,0.53847064]
[1770458707916,0.014678,68173.0,68146.0,0.53869045]
[1770458708207,0.014677,68177.0,68148.0,0.53869045]
[1770458708612,0.014678,68174.0,68148.0,0.53869045]
[1770458708812,0.00010552,68173.0,68148.0,0.53869045]
[1770458709208,0.00010552,68173.0,68147.0,0.014684]
[1770458709209,0.00010552,68173.0,68150.0,0.55337345]
[1770458709411,0.01476452,68173.0,68153.0,0.014682]
[1770458709608,0.01476452,68173.0,68153.0,0.56876842]
[1770458709809,0.55636786,68188.0,68153.0,0.55408642]
[1770458710011,0.014674,68191.0,68162.0,0.55408642]
[1770458710215,0.55636786,68198.0,68162.0,0.55408642]
[1770458710415,0.55636786,68194.0,68162.0,0.55408642]
[1770458710620,0.014675,68188.0,68162.0,0.55408642]
[1770458710915,0.014675,68188.0,68150.0,0.1500509]
[1770458710916,0.014674,68192.0,68164.0,0.55408642]
[1770458711116,0.014675,68190.0,68164.0,0.55408642]
[1770458711315,0.014676,68184.0,68164.0,0.55408642]
[1770458711522,0.014675,68188.0,68164.0,0.55408642]
[1770458712222,0.014675,68185.0,68164.0,0.55408642]
[1770458712812,0.014677,68179.0,68153.0,0.54299544]
[1770458713017,0.55636786,68190.0,68153.0,0.55767744]
[1770458713313,0.55636786,68187.0,68153.0,0.54299544]
[1770458713915,0.014678,68172.0,68153.0,0.54299544]
[1770458714116,0.55636786,68187.0,68153.0,0.54299544]
[1770458714322,0.014677,68177.0,68153.0,0.54299544]
[1770458714513,0.55636786,68187.0,68153.0,0.54299544]
[1770458714514,0.014678,68175.0,68153.0,0.54299544]
[1770458715215,0.014678,68172.0,68153.0,0.54299544]
[1770458715519,0.014678,68176.0,68153.0,0.54399544]
[1770458715920,0.014678,68175.0,68153.0,0.54399544]
[1770458716512,0.014676,68182.0,68153.0,0.55867744]
[1770458716713,0.014676,68182.0,68153.0,0.55767744]
[1770458718716,0.55636786,68187.0,68153.0,0.54299544]
[1770458718920,0.55636786,68197.0,68163.0,0.54393225]
[1770458720419,0.014675,68188.0,68165.0,0.54637724]
[1770458720619,0.014676,68181.0,68165.0,0.54637724]
[1770458720819,0.014677,68177.0,68165.0,0.54637724]
[1770458721123,0.014677,68177.0,68152.0,0.54637724]
[1770458721320,0.014677,68177.0,68153.0,0.014682]
[1770458721521,0.014677,68177.0,68154.0,0.54637724]
[1770458723421,0.55636786,68184.0,68154.0,0.54637724]
[1770458724629,0.014676,68181.0,68154.0,0.54637724]
[1770458724929,0.014676,68181.0,68156.0,0.55408642]
[1770458725130,0.014659,68175.0,68156.0,0.55408642]
[1770458725729,0.014676,68184.0,68159.0,0.55408642]
[1770458725925,0.55636786,68191.0,68159.0,0.55408642]
[1770458726128,0.014673,68198.0,68151.0,0.55408642]
[1770458726129,0.55636786,68180.0,68151.0,0.55408642]
[1770458726318,0.55636786,68180.0,68132.0,0.014687]
[1770458726319,0.014678,68173.0,68153.0,0.55408642]
[1770458729136,0.014679,68170.0,68153.0,0.55408642]
[1770458730632,0.014679,68170.0,68137.0,0.29060216]
[1770458730633,0.014684,68148.0,68134.0,0.55108704]
[1770458730835,0.55636786,68158.0,68134.0,0.55108704]
[1770458731130,0.014682,68157.0,68134.0,0.55108704]
[1770458731524,0.014682,68155.0,68134.0,0.55108704]
[1770458731728,0.55636786,68158.0,68134.0,0.55108704]
[1770458731930,0.55636786,68156.0,68134.0,0.55108704]
[1770458732227,0.014683,68151.0,68134.0,0.55108704]
[1770458732420,0.014683,68149.0,68134.0,0.55108704]
[1770458732923,0.014684,68147.0,68123.0,0.55408642]
[1770458733233,0.014684,68147.0,68125.0,0.55408642]
[1770458733428,0.55636786,68153.0,68126.0,0.55408642]
[1770458733632,0.014685,68142.0,68118.0,0.5346069]
[1770458733927,0.014685,68142.0,68120.0,0.53448867]
[1770458734339,0.014685,68143.0,68120.0,0.53448867]
[1770458735431,0.014682,68155.0,68120.0,0.53448867]
[1770458735432,0.014686,68136.0,68120.0,0.53448867]
[1770458735630,0.014685,68139.0,68120.0,0.53448867]
[1770458735830,0.014686,68137.0,68120.0,0.53448867]
[1770458736232,0.56436739,68153.0,68120.0,0.53448867]
[1770458736430,0.56436739,68153.0,68124.0,0.53791493]
[1770458736828,0.014684,68147.0,68124.0,0.53791493]
[1770458737027,0.014684,68147.0,68126.0,0.53791493]
[1770458737226,0.014684,68147.0,68128.0,0.53791493]
[1770458737428,0.01468,68165.0,68128.0,0.53791493]
[1770458737429,0.014683,68150.0,68128.0,0.53791493]
[1770458738332,0.014683,68150.0,68130.0,0.5396308]
[1770458740130,0.01468,68163.0,68135.0,0.53861296]
[1770458740433,0.56436739,68166.0,68140.0,0.53861296]
[1770458740634,0.56436739,68164.0,68126.0,0.23264832]
[1770458740938,0.014683,68149.0,68128.0,0.53861296]
[1770458741236,0.014683,68149.0,68130.0,0.65537762]
[1770458741438,0.014683,68149.0,68130.0,0.65637762]
[1770458741739,0.014683,68152.0,68130.0,0.65637762]
[1770458742331,0.014683,68150.0,68130.0,0.65537762]
[1770458743129,0.014683,68150.0,68118.0,0.00011823]
[1770458743130,0.014685,68141.0,68125.0,0.11676466]
[1770458743335,0.014685,68142.0,68122.0,0.53916929]
[1770458743532,0.014687,68133.0,68122.0,0.53916929]
[1770458743732,0.56436739,68144.0,68122.0,0.53916929]
[1770458743936,0.014687,68134.0,68122.0,0.53916929]
[1770458744528,0.014687,68132.0,68110.0,0.13145666]
[1770458744841,0.014687,68132.0,68090.0,0.7577693]
[1770458744842,0.014691,68113.0,68087.0,0.514948]
[1770458745338,0.014692,68110.0,68087.0,0.514948]
[1770458745633,0.014688,68127.0,68095.0,0.52043158]
[1770458745831,0.014687,68131.0,68104.0,0.52043158]
[1770458746241,0.56436739,68146.0,68112.0,0.52043158]
[1770458746436,0.014687,68131.0,68112.0,0.52043158]
[1770458746634,0.01468,68162.0,68084.0,0.014697]
[1770458746635,0.014684,68146.0,68116.0,0.52043158]
[1770458746826,0.014685,68143.0,68118.0,0.52043158]
[1770458748232,0.014685,68140.0,68118.0,0.52043158]
[1770458748832,0.014685,68141.0,68118.0,0.52043158]
[1770458749436,0.014684,68145.0,68118.0,0.52043158]
[1770458749627,0.014682,68154.0,68127.0,0.54774323]
[1770458750928,0.014682,68154.0,68107.0,0.014692]
[1770458750929,0.014681,68158.0,68129.0,0.54774323]
[1770458751335,0.014682,68155.0,68131.0,0.54774323]
[1770458751536,0.014681,68159.0,68131.0,0.54774323]
[1770458751934,0.014674,68192.0,68139.0,0.54774323]
[1770458751935,0.014679,68167.0,68139.0,0.54774323]
[1770458753131,0.56436739,68174.0,68139.0,0.54774323]
[1770458753642,0.01468,68163.0,68139.0,0.54774323]
[1770458754235,0.01468,68163.0,68130.0,0.15078019]
[1770458754236,0.56436739,68183.0,68146.0,0.54774323]
[1770458754436,0.014659,68171.0,68150.0,0.54774323]
[1770458754635,0.014677,68178.0,68150.0,0.54774323]
[1770458754841,0.56436739,68183.0,68150.0,0.54774323]
[1770458755342,0.014677,68177.0,68150.0,0.54774323]
[1770458756039,0.014678,68174.0,68150.0,0.54774323]
[1770458756632,0.014679,68171.0,68150.0,0.54774323]
[1770458756838,0.014678,68175.0,68150.0,0.54774323]
[1770458760745,0.014678,68173.0,68150.0,0.54774323]
[1770458761447,0.56436739,68183.0,68152.0,0.54774323]
[1770458761448,0.014677,68176.0,68152.0,0.54774323]
[1770458762243,0.56436739,68173.0,68148.0,0.014683]
[1770458762444,0.56436739,68173.0,68130.0,0.014687]
[1770458762445,0.014681,68157.0,68137.0,0.54774323]
[1770458762648,0.014681,68157.0,68112.0,0.36298911]
[1770458762649,0.56436739,68172.0,68139.0,0.54774323]
[1770458762951,0.01468,68166.0,68142.0,0.54774323]
[1770458763148,0.014681,68160.0,68142.0,0.54774323]
[1770458763347,0.014682,68157.0,68142.0,0.54774323]
[1770458763646,0.014681,68161.0,68142.0,0.54774323]
[1770458763855,0.56436739,68165.0,68142.0,0.54774323]
[1770458765054,0.014677,68179.0,68119.0,0.1215]
[1770458765055,0.56436739,68163.0,68129.0,0.54774323]
[1770458765353,0.014683,68149.0,68129.0,0.54774323]
[1770458765939,0.014684,68147.0,68129.0,0.54774323]
[1770458766144,0.56436739,68161.0,68129.0,0.54774323]
[1770458766145,0.014684,68145.0,68129.0,0.54774323]
[1770458766455,0.014683,68149.0,68129.0,0.54774323]
[1770458766853,0.014684,68147.0,68129.0,0.54774323]
[1770458767256,0.014683,68150.0,68129.0,0.54774323]
[1770458768450,0.014682,68153.0,68129.0,0.54774323]
[1770458768647,0.57395395,68169.0,68133.0,0.5741983]
[1770458769047,0.55927495,68166.0,68133.0,0.5741983]
[1770458769452,0.014687,68133.0,68113.0,0.5741983]
[1770458769746,0.014688,68129.0,68113.0,0.5741983]
[1770458769952,0.014687,68133.0,68113.0,0.5741983]
[1770458770348,0.014687,68131.0,68113.0,0.5741983]
[1770458770549,0.014688,68129.0,68113.0,0.5741983]
[1770458771644,0.54816726,68139.0,68113.0,0.5741983]
[1770458771851,0.014686,68137.0,68113.0,0.5741983]
[1770458772251,0.014685,68141.0,68113.0,0.5741983]
[1770458772459,0.014686,68138.0,68113.0,0.5741983]
[1770458772647,0.014685,68142.0,68113.0,0.5741983]
[1770458772847,0.014685,68142.0,68113.0,0.5888893]
[1770458773753,0.014686,68138.0,68113.0,0.5741983]
[1770458773958,0.014686,68135.0,68113.0,0.5741983]
[1770458774456,0.014686,68139.0,68113.0,0.5741983]
[1770458775655,0.54816726,68138.0,68110.0,0.014691]
[1770458775849,0.54816726,68138.0,68075.0,0.43638675]
[1770458775850,0.54816726,68125.0,68096.0,0.57388538]
[1770458776054,0.014691,68113.0,68096.0,0.57388538]
[1770458776449,0.01469,68117.0,68096.0,0.57388538]
[1770458776856,0.014692,68107.0,68086.0,0.57388538]
[1770458777453,0.014693,68104.0,68086.0,0.57388538]
[1770458777655,0.014692,68108.0,68086.0,0.57388538]
[1770458777856,0.014691,68112.0,68086.0,0.57388538]
[1770458778055,0.014692,68109.0,68086.0,0.57388538]
[1770458778559,0.014693,68106.0,68086.0,0.57388538]
[1770458778964,0.0147,68073.0,68068.0,8e-07]
[1770458779255,0.014699,68075.0,68059.0,0.0002]
[1770458779561,0.0147,68071.0,68049.0,0.57388538]
[1770458780049,0.0001177,68070.0,68049.0,0.57388538]
[1770458781246,0.014701,68069.0,68049.0,0.57388538]
[1770458781661,0.0001177,68070.0,68049.0,0.57388538]
[1770458781961,0.0148177,68070.0,68049.0,0.57388538]
[1770458782556,0.0148177,68070.0,68040.0,0.58859238]
[1770458783853,0.0001177,68070.0,68040.0,0.57388538]
[1770458784552,0.014701,68065.0,68040.0,0.57388538]
[1770458784752,0.0001177,68070.0,68040.0,0.57388538]
[1770458785463,0.0001177,68070.0,68040.0,0.58859238]
[1770458785964,0.0001177,68070.0,68044.0,0.57388538]
[1770458786258,0.54816726,68093.0,68053.0,0.57388538]
[1770458786460,0.014699,68078.0,68053.0,0.57388538]
[1770458786658,0.54816726,68088.0,68044.0,0.57388538]
[1770458786659,0.54816726,68074.0,68044.0,0.57388538]
[1770458786964,0.56286726,68074.0,68044.0,0.57388538]
[1770458787265,0.00011875,68073.0,68044.0,0.57388538]
[1770458787461,0.00011875,68073.0,68046.0,0.57388538]
[1770458787656,0.00011875,68073.0,68049.0,0.57388538]
[1770458788160,0.00011875,68073.0,68050.0,0.014705]
[1770458788362,0.00011875,68073.0,68054.0,0.57388538]
[1770458788959,0.54816726,68083.0,68056.0,0.57388538]
[1770458789671,0.014697,68088.0,68060.0,0.57388538]
[1770458789973,0.00011421,68087.0,68064.0,0.57388538]
[1770458790166,0.00011421,68087.0,68066.0,0.57388538]
[1770458790359,0.00011421,68087.0,68068.0,0.57388538]
[1770458791167,0.00011421,68087.0,68068.0,0.58858638]
[1770458791564,0.54816726,68101.0,68073.0,0.58858538]
[1770458791759,0.014694,68100.0,68073.0,0.58858538]
[1770458792069,0.54816726,68101.0,68077.0,0.57388538]
[1770458792665,0.54816726,68094.0,68056.0,0.57388538]
[1770458792857,0.56286226,68094.0,68069.0,0.57388538]
[1770458793167,0.56286226,68094.0,68068.0,0.0002]
[1770458793367,0.014696,68088.0,68068.0,0.0002]
[1770458793966,0.56286326,68091.0,68061.0,0.57388538]
[1770458794668,0.014697,68085.0,68061.0,0.57388538]
[1770458795062,0.014696,68088.0,68061.0,0.57388538]
[1770458795770,0.014697,68085.0,68061.0,0.57388538]
[1770458796072,0.014696,68089.0,68061.0,0.57388538]
[1770458796765,0.014697,68086.0,68061.0,0.57388538]
[1770458797269,0.014697,68087.0,68061.0,0.57388538]
[1770458797563,0.014696,68091.0,68063.0,0.56534078]
[1770458797769,0.014696,68091.0,68065.0,0.56534078]
[1770458798164,0.55182759,68100.0,68065.0,0.56534078]
[1770458798165,0.014695,68094.0,68065.0,0.56534078]
[1770458798359,0.55182759,68100.0,68048.0,0.17490135]
[1770458798360,0.014694,68098.0,68069.0,0.56534078]
[1770458798764,0.55182759,68100.0,68069.0,0.56534078]
[1770458799269,0.014696,68089.0,68069.0,0.56534078]
[1770458799474,0.014659,68088.0,68069.0,0.56534078]
[1770458799770,0.55182759,68093.0,68069.0,0.56534078]
[1770458800366,0.014697,68084.0,68069.0,0.56534078]
[1770458800964,0.55182759,68093.0,68069.0,0.56534078]
[1770458801369,0.014696,68089.0,68069.0,0.56534078]
[1770458801560,0.014696,68089.0,68060.0,0.68684078]
[1770458801561,0.55182759,68089.0,68060.0,0.68684078]
[1770458801775,0.014698,68081.0,68060.0,0.68684078]
[1770458803273,0.55182759,68080.0,68051.0,0.56534078]
[1770458803682,0.55182759,68088.0,68051.0,0.56534078]
[1770458804266,0.55182759,68088.0,68055.0,0.56534078]
[1770458804666,0.014698,68081.0,68055.0,0.56534078]
[1770458805170,0.014699,68078.0,68055.0,0.56534078]
[1770458805373,0.014699,68075.0,68055.0,0.56534078]
[1770458806074,0.0147,68072.0,68055.0,0.56534078]
[1770458808275,0.014699,68076.0,68055.0,0.56534078]
[1770458809167,0.0147,68074.0,68055.0,0.56534078]
[1770458809382,0.014698,68079.0,68055.0,0.56534078]
[1770458809771,0.014699,68077.0,68055.0,0.56534078]
[1770458810171,0.55182759,68086.0,68055.0,0.56534078]
[1770458810378,0.014699,68077.0,68055.0,0.56534078]
[1770458811778,0.014698,68080.0,68055.0,0.69686343]
[1770458811981,0.55182759,68092.0,68058.0,0.56534078]
[1770458812178,0.55182759,68092.0,68060.0,0.56534078]
[1770458812374,0.014696,68090.0,68064.0,0.56534078]
[1770458812574,0.014696,68090.0,68068.0,0.56534078]
[1770458814477,0.014696,68088.0,68068.0,0.56534078]
[1770458815283,0.55182759,68100.0,68068.0,0.56534078]
[1770458815480,0.014696,68088.0,68068.0,0.56534078]
[1770458816683,0.55182759,68100.0,68070.0,0.56534078]
[1770458816684,0.014696,68092.0,68070.0,0.56534078]
[1770458817094,0.014696,68090.0,68070.0,0.56534078]
[1770458817492,0.014696,68088.0,68070.0,0.56534078]
[1770458818190,0.55182759,68109.0,68070.0,0.56534078]
[1770458818496,0.55182759,68103.0,68073.0,0.56534078]
[1770458818791,0.55182759,68100.0,68073.0,0.68263877]
[1770458818993,0.014695,68096.0,68073.0,0.68263877]
[1770458819188,0.55182759,68100.0,68073.0,0.68263877]
[1770458819383,0.014695,68094.0,68073.0,0.56534078]
[1770458821098,0.014692,68108.0,68060.0,0.56534078]
[1770458821099,0.014699,68077.0,68060.0,0.56534078]
[1770458821394,0.014695,68093.0,68060.0,0.56534078]
[1770458821395,0.55182759,68079.0,68060.0,0.56534078]
[1770458822392,0.55182759,68079.0,68049.0,0.56534078]
[1770458823192,0.0147,68071.0,68049.0,0.56534078]
[1770458824499,0.014701,68069.0,68049.0,0.56534078]
[1770458825598,0.55182759,68079.0,68049.0,0.56534078]
[1770458826196,0.0147,68071.0,68049.0,0.56534078]
[1770458826396,0.56206412,68059.0,68042.0,0.17470135]
[1770458826699,0.56206412,68059.0,68038.0,0.58274599]
[1770458826902,0.014704,68052.0,68032.0,0.58294599]
[1770458827400,0.014704,68052.0,68032.0,0.58274599]
[1770458827992,0.014702,68060.0,68032.0,0.58274599]
[1770458828396,0.014702,68060.0,68034.0,0.58274599]
[1770458828602,0.014702,68060.0,68035.0,0.22064476]
[1770458828804,0.014702,68060.0,68034.0,0.58274599]
[1770458829102,0.014702,68060.0,68036.0,0.58274599]
[1770458829502,0.029361,68060.0,68036.0,0.58274599]
[1770458830002,0.014702,68060.0,68036.0,0.58274599]
[1770458831302,0.014699,68075.0,68036.0,0.58274599]
[1770458831303,0.014702,68063.0,68036.0,0.58274599]
[1770458832106,0.014701,68066.0,68036.0,0.59745299]
[1770458834000,0.014702,68062.0,68036.0,0.59745299]
[1770458834308,0.014703,68060.0,68036.0,0.58274599]
[1770458834505,0.56424496,68060.0,68037.0,0.1215]
[1770458834703,0.56424496,68060.0,68037.0,0.64737621]
[1770458835805,0.014704,68052.0,68037.0,0.64737621]
[1770458836002,0.014705,68050.0,68037.0,0.52587621]
[1770458837307,0.014704,68053.0,68037.0,0.52587621]
[1770458838202,0.014703,68056.0,68037.0,0.52587621]
[1770458839197,0.014703,68059.0,68037.0,0.52587621]
[1770458840005,0.014703,68057.0,68037.0,0.52587621]
[1770458841312,0.014703,68060.0,68037.0,0.52587621]
[1770458842108,0.014703,68060.0,68035.0,0.014708]
[1770458842109,0.014702,68063.0,68043.0,0.52587621]
[1770458843406,0.014701,68068.0,68044.0,0.014706]
[1770458843606,0.014701,68068.0,68045.0,0.52587621]
[1770458844012,0.0147,68071.0,68047.0,0.52587621]
[1770458844517,0.014699,68076.0,68047.0,0.52587621]
[1770458844812,0.56424496,68073.0,68049.0,0.52587621]
[1770458845014,0.014701,68067.0,68049.0,0.52587621]
[1770458845412,0.0147,68070.0,68049.0,0.52587621]
[1770458846508,0.0147,68073.0,68049.0,0.54058121]
[1770458847011,0.014695,68096.0,68038.0,0.0002]
[1770458847012,0.56424496,68057.0,68038.0,0.0002]
[1770458847214,0.56424496,68051.0,68038.0,0.0002]
[1770458847714,0.014704,68052.0,68030.0,0.52587621]
[1770458848716,0.014705,68049.0,68030.0,0.52587621]
[1770458849217,0.56424496,68059.0,68030.0,0.52587621]
[1770458850514,0.014704,68053.0,68030.0,0.52587621]
[1770458852109,0.014703,68057.0,68030.0,0.52587621]
[1770458852415,0.014702,68062.0,68030.0,0.52587621]
[1770458852618,0.014702,68062.0,68047.0,0.0002]
[1770458852914,0.014703,68059.0,68047.0,0.0002]
[1770458853817,0.014703,68056.0,68040.0,0.52587621]
[1770458854616,0.56424496,68054.0,68029.0,0.52587621]
[1770458855214,0.014704,68051.0,68029.0,0.52587621]
[1770458855404,0.014704,68053.0,68021.0,0.52599943]
[1770458855608,0.014705,68050.0,68021.0,0.52599943]
[1770458856215,0.014705,68050.0,68021.0,0.54071043]
[1770458856810,0.014705,68049.0,68021.0,0.52599943]
[1770458857017,0.56424496,68052.0,68021.0,0.52599943]
[1770458857413,0.014706,68043.0,68021.0,0.52599943]
[1770458858212,0.55379361,68043.0,68021.0,0.52599943]
[1770458858819,0.014709,68030.0,68015.0,0.0002]
[1770458859116,0.53908761,68031.0,67998.0,0.014716]
[1770458859318,0.014712,68015.0,67997.0,0.58222854]
[1770458859621,0.014711,68019.0,67997.0,0.58222854]
[1770458859816,0.53908761,68022.0,67997.0,0.58222854]
[1770458859817,0.014712,68016.0,67997.0,0.58222854]
[1770458860225,0.014712,68016.0,67997.0,0.00588503]
[1770458861025,0.00012416,68018.0,68001.0,0.57634351]
[1770458861317,0.53908761,68036.0,68001.0,0.57634351]
[1770458861519,0.53908761,68036.0,68023.0,0.0002]
[1770458862522,0.53908761,68044.0,68020.0,0.15135639]
[1770458863013,0.53908761,68044.0,68015.0,0.57634351]
[1770458863322,0.001,68036.0,68015.0,0.57634351]
[1770458864020,0.014706,68042.0,68015.0,0.57634351]
[1770458864216,0.014705,68047.0,68015.0,0.57634351]
[1770458864614,0.55379361,68044.0,68021.0,0.57654351]
[1770458864821,0.55379361,68044.0,68021.0,0.0002]
[1770458865220,0.014707,68041.0,68021.0,0.0002]
[1770458865425,0.55379461,68041.0,68021.0,0.0002]
[1770458865721,0.55379461,68041.0,68013.0,0.57634351]
[1770458866524,0.014707,68038.0,68013.0,0.57634351]
[1770458867434,0.01471,68026.0,68007.0,0.57654351]
[1770458867733,0.53908761,68028.0,68007.0,0.57654351]
[1770458867734,0.01471,68027.0,68007.0,0.57654351]
[1770458867918,0.01471,68027.0,67997.0,0.00588503]
[1770458867919,0.014708,68037.0,68011.0,0.57634351]
[1770458869130,0.08822,68058.0,68000.0,0.17470135]
[1770458869131,0.014709,68032.0,68009.0,0.57654351]
[1770458869321,0.014709,68029.0,68009.0,0.57654351]
[1770458869828,0.55379661,68029.0,68009.0,0.0002]
[1770458870228,0.55379661,68029.0,68001.0,0.57634351]
[1770458870929,0.53908761,68027.0,68001.0,0.57634351]
[1770458872532,0.01471,68026.0,68001.0,0.57634351]
[1770458873530,0.01471,68026.0,68003.0,0.57634351]
[1770458876823,0.01471,68026.0,68005.0,0.0002]
[1770458877026,0.014659,68020.0,68005.0,0.0002]
[1770458877828,0.014659,68020.0,68003.0,0.57634351]
[1770458878032,0.55379761,68026.0,68003.0,0.57634351]
[1770458879636,0.55379961,68018.0,68000.0,0.15135639]
[1770458880638,0.014712,68015.0,68000.0,0.15135639]
[1770458881228,0.55379961,68015.0,68000.0,0.15135639]
[1770458881831,0.014712,68018.0,68000.0,0.7276999]
[1770458882030,0.53908761,68023.0,68000.0,0.7276999]
[1770458882226,0.53908761,68023.0,68003.0,0.57634351]
[1770458882540,0.01471,68027.0,68003.0,0.57634351]
[1770458883426,0.014707,68038.0,68008.0,0.57634351]
[1770458883626,0.53908761,68038.0,68012.0,0.57634351]
[1770458884026,0.014703,68060.0,68021.0,0.57634351]
[1770458884027,0.014706,68043.0,68021.0,0.57634351]
[1770458884839,0.53908761,68043.0,68021.0,0.57634351]
[1770458885138,0.53908761,68043.0,68014.0,0.57654351]
[1770458885740,0.53908761,68043.0,68014.0,0.57634351]
[1770458886234,0.52581454,68040.0,68014.0,0.57634351]
[1770458887433,0.54052354,68031.0,68004.0,0.56269085]
[1770458887840,0.014708,68035.0,68006.0,0.56269085]
[1770458888044,0.014708,68035.0,68008.0,0.56269085]
[1770458888945,0.014707,68039.0,68010.0,0.56269085]
[1770458889134,0.014708,68037.0,68012.0,0.56269085]
[1770458889841,0.53948252,68053.0,68021.0,0.53177023]